fUST/lending_fUST_20240406
["ID","MTS","AMOUNT","RATE_DAILY","PERIOD"]
[321700584,1712410241564,-55.29837128,0.0002513,2]
[321700962,1712410246910,-242.07004336,0.0002513,2]
[321700964,1712410246921,-240.703174,0.0002513,2]
[321700966,1712410246932,-500.0,0.0002513,2]
[321700968,1712410246942,-500.0,0.0002513,2]
[321700970,1712410246953,-500.0,0.00025131,2]
[321700972,1712410246965,-500.0,0.00025131,2]
[321700974,1712410246974,-306.98393898,0.00025133,2]
[321700975,1712410246984,-1075.58919652,0.00025133,2]
[321700987,1712410247088,-35.47584636,0.00025133,2]
[321701459,1712410305835,240.0,0.00023836,2]
[321701460,1712410309948,281.86515092,0.00024993,2]
[321701461,1712410314107,217.4057204,0.00024418,2]
[321701462,1712410359255,172.6030358,0.00024418,2]
[321701463,1712410448270,458.814309,0.00024165,2]
[321701466,1712410484320,399.12760279,0.00024991,2]
[321701467,1712410487430,221.68475729,0.00022995,2]
[321701469,1712410530670,24900.0,0.00024165,2]
[321701470,1712410543176,179.360126,0.00023891,2]
[321701477,1712410660873,250.0,0.00024104,2]
[321701479,1712410769548,349.23665245,0.00024992,2]
[321701480,1712410789039,150.0,0.00022995,2]
[321701514,1712410797044,158.8511084,0.00024991,2]
[321701749,1712410977912,229.407154,0.00024104,2]
[321701753,1712411044971,305.58207092,0.00024992,2]
[321701754,1712411090301,150.0,0.00022995,2]
[321701755,1712411325415,267.38431202,0.00024991,2]
[321701795,1712411431799,-300.0,0.0002509,2]
[321701797,1712411431809,-300.0,0.0002509,2]
[321701799,1712411431819,-500.0,0.00025091,2]
[321701801,1712411431829,-1320.3,0.00025091,2]
[321701803,1712411431838,-500.0,0.00025091,2]
[321701805,1712411431848,-500.0,0.00025091,2]
[321701807,1712411431858,-500.0,0.00025091,2]
[321701809,1712411431867,-500.0,0.00025091,2]
[321701811,1712411431876,-587.38702521,0.00025091,2]
[321701812,1712411431885,-744.54,0.00025091,2]
[321701814,1712411431895,-500.0,0.00025091,2]
[321701816,1712411431904,-2686.5,0.00025091,2]
[321701818,1712411431913,-764.93,0.00025091,2]
[321701820,1712411431922,-500.0,0.00025091,2]
[321701822,1712411431932,-500.0,0.00025091,2]
[321701824,1712411431941,-412.21517055,0.00025091,2]
[321701827,1712411431964,-189.50872756,0.00025091,2]
[321701829,1712411431973,-639.12432217,0.00025091,2]
[321701833,1712411432008,-984.66567783,0.00025091,2]
[321701835,1712411432018,-500.0,0.00025091,2]
[321701837,1712411432027,-500.0,0.00025091,2]
[321701839,1712411432036,-500.0,0.00025091,2]
[321701841,1712411432045,-11559.58,0.00025091,2]
[321701843,1712411432055,-500.0,0.00025091,2]
[321701845,1712411432065,-500.0,0.00025091,2]
[321701847,1712411432073,-2536.56,0.00025091,2]
[321701849,1712411432083,-500.0,0.00025091,2]
[321701851,1712411432093,-828.72,0.00025091,2]
[321701853,1712411432102,-702.54,0.00025091,2]
[321701855,1712411432112,-1767.26,0.00025091,2]
[321701857,1712411432120,-1356.89,0.00025091,2]
[321701859,1712411432130,-500.0,0.00025091,2]
[321701861,1712411432139,-500.0,0.00025091,2]
[321701863,1712411432148,-3121.27,0.00025091,2]
[321701865,1712411432160,-2378.53,0.00025091,2]
[321701867,1712411432169,-500.0,0.00025091,2]
[321701869,1712411432178,-500.0,0.00025091,2]
[321701871,1712411432187,-500.0,0.00025091,2]
[321701873,1712411432197,-500.0,0.00025092,2]
[321701875,1712411432206,-500.0,0.00025092,2]
[321701877,1712411432215,-541.53,0.00025092,2]
[321701878,1712411432225,-1029.12,0.00025092,2]
[321701880,1712411432236,-500.0,0.00025092,2]
[321701882,1712411432247,-500.0,0.00025092,2]
[321701884,1712411432257,-151.0,0.00025092,2]
[321701886,1712411432266,-595.51,0.00025092,2]
[321701888,1712411432275,-3063.7,0.00025092,2]
[321701890,1712411432284,-868.82,0.00025092,2]
[321701892,1712411432294,-2005.99,0.00025092,2]
[321701894,1712411432303,-500.0,0.00025092,2]
[321701896,1712411432313,-249.753083,0.00025092,2]
[321701898,1712411432323,-818.88,0.00025092,2]
[321701900,1712411432332,-7051.79341682,0.00025092,2]
[321702795,1712411445857,-713.52,0.00025091,2]
[321702796,1712411445867,-1906.65780078,0.00025091,2]
[321702797,1712411445880,-415.11121662,0.00025091,2]
[321702798,1712411445910,-614.2809826,0.00025091,2]
[321702799,1712411445920,-2603.94658318,0.00025092,2]
[321702800,1712411445929,-502.24,0.00025092,2]
[321702801,1712411445938,-153.768095,0.00025092,2]
[321702802,1712411445948,-151.0,0.00025092,2]
[321702803,1712411445957,-144.03042867,0.00025092,2]
[321702808,1712411540192,229.407154,0.00024103,2]
[321702817,1712411678430,21838.7676562,0.00023,2]
[321702819,1712411867464,158.71666691,0.00024989,2]
[321702822,1712412161593,233.96127307,0.0002499,2]
[321702830,1712412219853,102606.158323,0.00025,2]
[321702852,1712412407829,158.71666689,0.00024988,2]
[321702889,1712412596984,185.03577122,0.000229,2]
[321702952,1712412632052,-918.00569127,0.00025085,2]
[321702953,1712412632062,-542.94049469,0.00025086,2]
[321702954,1712412632073,-1834.31342747,0.00025087,2]
[321702955,1712412632103,-1898.42454548,0.00025087,2]
[321702956,1712412632113,-300.0,0.00025088,2]
[321702957,1712412632123,-300.0,0.00025088,2]
[321702958,1712412632133,-2574.56,0.00025089,2]
[321702959,1712412632143,-500.0,0.00025089,2]
[321702960,1712412632154,-500.0,0.00025089,2]
[321702962,1712412632164,-1556.13,0.00025089,2]
[321702964,1712412632173,-9652.47348092,0.00025089,2]
[321703568,1712412667005,2629.21549911,0.000229,2]
[321703569,1712412667302,635.20301271,0.000229,2]
[321703570,1712412683792,164.93017218,0.00024989,2]
[321703572,1712412717195,204.71611391,0.00024989,2]
[321703578,1712412794140,24900.0,0.00024091,2]
[321703579,1712412846200,181.7866,0.00023817,2]
[321703582,1712412898160,150.0,0.00022988,2]
[321703583,1712413065375,924.16540246,0.0002383,2]
[321703584,1712413075809,220.064758,0.00024088,2]
[321703586,1712413168628,6788.25086151,0.00025,2]
[321703587,1712413200023,294.93477311,0.00022989,2]
[321703588,1712413203810,188.4812004,0.00022988,2]
[321703589,1712413210857,900.59755326,0.00024571,2]
[321703590,1712413213596,200.0,0.00024085,2]
[321703591,1712413214249,-407.36237931,0.00025076,2]
[321703592,1712413214281,-155.0,0.00025077,2]
[321703593,1712413214301,-407.36237931,0.00025078,2]
[321703594,1712413214313,-155.0,0.00025078,2]
[321703595,1712413214324,-394.27524138,0.00025078,2]
[321703596,1712413237020,-202.5608978,0.00025082,2]
[321703597,1712413237034,-172.8782044,0.00025082,2]
[321703598,1712413237044,-202.5608978,0.00025083,2]
[321703599,1712413255025,6019.0,0.00024282,2]
[321703600,1712413257517,372.51115814,0.00024987,2]
[321703602,1712413270105,-300.0,0.00025083,2]
[321703603,1712413270140,-300.0,0.00025083,2]
[321703604,1712413270241,-353.07672289,0.00025084,2]
[321703605,1712413289361,1062.19707423,0.00023833,2]
[321703606,1712413302615,-155.0,0.00025083,2]
[321703607,1712413302647,-1131.10155601,0.00025083,2]
[321703608,1712413302703,-61.79688798,0.00025084,2]
[321703609,1712413327050,-300.0,0.00025083,2]
[321703610,1712413327082,-180.0,0.00025083,2]
[321703611,1712413327121,-120.0,0.00025083,2]
[321703612,1712413351441,-1000.0,0.00025084,2]
[321703614,1712413498020,161.28778822,0.00024977,2]
[321703615,1712413501235,196.62318207,0.00022989,2]
[321703629,1712413572707,220.064758,0.00024086,2]
[321703659,1712413802695,150.0,0.00022983,2]
[321703721,1712413832279,-562.30559427,0.00025058,2]
[321703723,1712413832289,-185.41664932,0.00025058,2]
[321703725,1712413832298,-688.56799994,0.00025059,2]
[321703727,1712413832308,-1698.91332904,0.0002506,2]
[321704087,1712413843050,325.94726339,0.00024987,2]
[321704089,1712413843326,-867.76010953,0.00025057,2]
[321704157,1712413915581,13108.7604366,0.00024087,2]
[321704158,1712413986867,-867.74240916,0.00025081,2]
[321704159,1712413986904,-388.18841436,0.00025082,2]
[321704160,1712413986939,-300.0,0.00025082,2]
[321704161,1712413986976,-300.0,0.00025082,2]
[321704162,1712413987012,-33269.82541235,0.00025083,2]
[321704163,1712413987049,-676.7269853,0.00025084,2]
[321704164,1712413987083,-886.09150372,0.00025084,2]
[321704165,1712413987117,-2119.45114629,0.00025084,2]
[321704166,1712413987152,-327.66782995,0.00025084,2]
[321704167,1712413987185,-282.0779007,0.00025084,2]
[321704168,1712413987220,-5778.03579658,0.00025084,2]
[321704169,1712413987255,-867.82809104,0.00025084,2]
[321704170,1712413987292,-192.68698064,0.00025084,2]
[321704171,1712413987327,-288.25852322,0.00025084,2]
[321704172,1712413987362,-935.83030336,0.00025084,2]
[321704173,1712413987396,-235.95809466,0.00025085,2]
[321704174,1712413987433,-14639.02699579,0.00025086,2]
[321704175,1712413987562,-155.58403473,0.00025087,2]
[321704176,1712413987597,-406.86199423,0.00025087,2]
[321704177,1712413987630,-1807.39653295,0.00025087,2]
[321704178,1712413987665,-278.03877127,0.00025087,2]
[321704179,1712413987698,-253.09361767,0.00025087,2]
[321704180,1712413987732,-387.63840614,0.00025087,2]
[321704181,1712413987766,-155.03720893,0.00025087,2]
[321704182,1712413987804,-500.0,0.00025087,2]
[321704183,1712413987841,-500.0,0.00025087,2]
[321704184,1712413987875,-500.0,0.00025087,2]
[321704185,1712413987911,-500.0,0.00025087,2]
[321704186,1712413987946,-2783.67,0.00025087,2]
[321704187,1712413987982,-500.0,0.00025087,2]
[321704188,1712413988016,-500.0,0.00025087,2]
[321704189,1712413988051,-500.0,0.00025087,2]
[321704190,1712413988085,-1491.29,0.00025087,2]
[321704191,1712413988118,-500.0,0.00025087,2]
[321704192,1712413988152,-500.0,0.00025087,2]
[321704193,1712413988186,-10675.75,0.00025087,2]
[321704194,1712413988221,-330.70671314,0.00025088,2]
[321704195,1712413988255,-673.26,0.00025088,2]
[321704196,1712413988290,-2991.21,0.00025088,2]
[321704197,1712413988323,-2430.87,0.00025088,2]
[321704198,1712413988358,-794.19,0.00025088,2]
[321704199,1712413988392,-500.0,0.00025088,2]
[321704200,1712413988427,-500.0,0.00025088,2]
[321704201,1712413988464,-802.49,0.00025088,2]
[321704202,1712413988503,-1693.62,0.00025088,2]
[321704203,1712413988539,-1300.36,0.00025088,2]
[321704204,1712413988573,-840.71,0.00025088,2]
[321704205,1712413988607,-2279.43,0.00025088,2]
[321704206,1712413988654,-500.0,0.00025088,2]
[321704207,1712413988694,-9253.42,0.00025088,2]
[321704208,1712413988861,-2813.71,0.00025088,2]
[321704209,1712413988897,-1922.41,0.00025088,2]
[321704210,1712413988933,-552.54,0.00025088,2]
[321704211,1712413988975,-500.0,0.00025088,2]
[321704212,1712413989012,-500.0,0.00025088,2]
[321704213,1712413989046,-784.76,0.00025088,2]
[321704214,1712413989080,-500.0,0.00025088,2]
[321704215,1712413989114,-500.0,0.00025088,2]
[321704216,1712413989148,-3491.31614998,0.00025089,2]
[321704217,1712413989182,-1265.28,0.00025089,2]
[321704218,1712413989216,-620.64157627,0.00025089,2]
[321704219,1712413989249,-518.97,0.00025089,2]
[321704220,1712413989282,-500.0,0.00025089,2]
[321704221,1712413989314,-986.24,0.00025089,2]
[321704222,1712413989347,-500.0,0.00025089,2]
[321704223,1712413989383,-500.0,0.00025089,2]
[321704224,1712413989416,-500.0,0.00025089,2]
[321704225,1712413989449,-570.7,0.00025089,2]
[321704226,1712413989482,-605.48006252,0.00025089,2]
[321704227,1712413989515,-500.0,0.00025089,2]
[321704228,1712413989549,-832.62,0.00025089,2]
[321704229,1712413989587,-391.35688816,0.00025089,2]
[321704230,1712413989622,-500.0,0.00025089,2]
[321704231,1712413989655,-1174.36,0.00025089,2]
[321704232,1712413989688,-151.0,0.00025089,2]
[321704233,1712413989721,-151.0,0.00025089,2]
[321704234,1712413989754,-500.0,0.00025089,2]
[321704235,1712413989799,-500.0,0.00025089,2]
[321704236,1712413989849,-500.0,0.00025089,2]
[321704237,1712413989893,-500.0,0.00025089,2]
[321704238,1712413989939,-500.0,0.00025089,2]
[321704239,1712413989986,-49.45910284,0.00025089,2]
[321704241,1712414032784,300.15471224,0.00019019,2]
[321704242,1712414040491,156.45450684,0.00019,2]
[321704243,1712414055412,189.049142,0.00024156,2]
[321704244,1712414071795,16035.38025056,0.00019,2]
[321704245,1712414073081,152.52371847,0.00024108,2]
[321704246,1712414089802,16035.38025056,0.00019,2]
[321704248,1712414101746,158.09112937,0.00024091,2]
[321704249,1712414104078,848.67496341,0.00022988,2]
[321704250,1712414105797,8331.79929586,0.00019,2]
[321704257,1712414253037,1968.4692218,0.00024088,2]
[321704259,1712414332685,18031.5307782,0.00025,2]
[321704260,1712414332712,1314.94012439,0.00025,2]
[321704261,1712414371793,823.8937149,0.00024072,2]
[321704262,1712414405241,565.78330894,0.00022988,2]
[321704263,1712414540812,10235.3218129,0.00024028,2]
[321704264,1712414551874,189.049142,0.00024028,2]
[321704266,1712414590035,701.7,0.0003219,60]
[321704272,1712414706464,377.18887263,0.00022988,2]
[321704273,1712414911042,181.7866,0.00023747,2]
[321704279,1712415007895,251.45924842,0.000229,2]
[321704397,1712415038540,-163.70809443,0.00024799,2]
[321704398,1712415038550,-294.24126292,0.000248,2]
[321704400,1712415039447,-153.86739945,0.000248,2]
[321704401,1712415039457,-160.0172684,0.00024825,2]
[321704402,1712415039466,-285.20385544,0.00024925,2]
[321704403,1712415039476,-3732.73797295,0.00024996,2]
[321704404,1712415039485,-300.0,0.00024997,2]
[321704405,1712415039496,-300.0,0.00024997,2]
[321704406,1712415039506,-1051.82284858,0.00024998,2]
[321704407,1712415039515,-253.81367367,0.00024998,2]
[321704408,1712415039524,-430.38139166,0.00024998,2]
[321704409,1712415039534,-28.08017637,0.00024998,2]
[321704477,1712415040630,-133.29984288,0.00024998,2]
[321704478,1712415040642,-232.95017337,0.00024998,2]
[321704480,1712415040652,-524.27891833,0.00024999,2]
[321704482,1712415040662,-1795.35096202,0.00025,2]
[321704508,1712415043585,-620.47449973,0.00025,2]
[321704546,1712415309249,167.63949895,0.000229,2]
[321704547,1712415425024,250.0,0.00023991,2]
[321704550,1712415514967,959.1842502,0.00023995,2]
[321704551,1712415610354,150.0,0.000229,2]
[321704555,1712415911833,150.0,0.000229,2]
[321704556,1712415945366,1295.481827,0.00030137,120]
[321704579,1712416165129,214.682303,0.00023805,2]
[321704661,1712416232676,-935.37988423,0.00024382,2]
[321704663,1712416232686,-1929.1859808,0.00024382,2]
[321704665,1712416232696,-161.46929426,0.00024383,2]
[321704667,1712416232705,-1306.43290206,0.00024383,2]
[321704669,1712416232713,-161.38539556,0.0002439,2]
[321704671,1712416232721,-634.02987767,0.00024509,2]
[321704673,1712416232730,-161.38539553,0.00024625,2]
[321704676,1712416232739,-161.38539553,0.00024859,2]
[321704679,1712416232748,-249.55337351,0.00024896,2]
[321704682,1712416232758,-680.33381,0.0002499,2]
[321704684,1712416232767,-300.0,0.00024994,2]
[321704687,1712416232776,-300.0,0.00024994,2]
[321704690,1712416232785,-500.0,0.00024995,2]
[321704693,1712416232794,-500.0,0.00024995,2]
[321704696,1712416232803,-500.0,0.00024995,2]
[321704699,1712416232811,-580.36612523,0.00024995,2]
[321704701,1712416232820,-675.6,0.00024995,2]
[321704704,1712416232829,-500.0,0.00024995,2]
[321704707,1712416232838,-809.41,0.00024995,2]
[321704710,1712416232847,-2867.4,0.00024995,2]
[321704713,1712416232857,-848.94,0.00024995,2]
[321704716,1712416232866,-500.0,0.00024995,2]
[321704719,1712416232875,-344.84778152,0.00024996,2]
[321704722,1712416232884,-500.0,0.00024996,2]
[321704724,1712416232893,-176.85915397,0.00024996,2]
[321704725,1712416232902,-500.0,0.00024996,2]
[321704727,1712416232911,-998.51,0.00024996,2]
[321704729,1712416232920,-500.0,0.00024996,2]
[321704731,1712416232929,-500.0,0.00024996,2]
[321704733,1712416232939,-162.201512,0.00024996,2]
[321704735,1712416232948,-546.92,0.00024996,2]
[321704737,1712416232957,-2307.52,0.00024996,2]
[321704739,1712416232966,-1212.56,0.00024996,2]
[321704741,1712416232975,-797.92,0.00024996,2]
[321704743,1712416232984,-2667.68,0.00024996,2]
[321704745,1712416232993,-500.0,0.00024996,2]
[321704747,1712416233001,-500.0,0.00024996,2]
[321704749,1712416233010,-2772.74,0.00024996,2]
[321704751,1712416233020,-1842.31,0.00024996,2]
[321704753,1712416233036,-752.06,0.00024996,2]
[321704755,1712416233050,-8867.86,0.00024996,2]
[321704756,1712416233059,-500.0,0.00024996,2]
[321704757,1712416233069,-500.0,0.00024996,2]
[321704758,1712416233079,-1675.84,0.00024996,2]
[321704759,1712416233088,-11012.74,0.00024996,2]
[321704760,1712416233098,-2473.06,0.00024996,2]
[321704761,1712416233109,-1830.05,0.00024996,2]
[321704762,1712416233118,-807.97,0.00024996,2]
[321704763,1712416233129,-500.0,0.00024996,2]
[321704764,1712416233139,-500.0,0.00024996,2]
[321704765,1712416233148,-1722.29,0.00024996,2]
[321704766,1712416233158,-500.0,0.00024996,2]
[321704767,1712416233170,-1319.73,0.00024996,2]
[321704768,1712416233179,-500.0,0.00024996,2]
[321704769,1712416233188,-151.0,0.00024996,2]
[321704770,1712416233197,-47559.69589843,0.00024997,2]
[321704771,1712416233210,-151.0,0.00024997,2]
[321704772,1712416233219,-309.98605157,0.00024998,2]
[321704773,1712416233229,-183.36210446,0.00024998,2]
[321704774,1712416233239,-1280.90745732,0.00024998,2]
[321704775,1712416233249,-308.47839263,0.00024998,2]
[321704776,1712416233259,-155.00155002,0.00024999,2]
[321704777,1712416233269,-5357.72809279,0.00025,2]
[321704778,1712416233283,-1841.66039267,0.00025,2]
[321704804,1712416238729,-3399.31,0.00025,2]
[321704887,1712416246935,-2211.38,0.00024996,2]
[321704888,1712416246947,-500.0,0.00024996,2]
[321704889,1712416246958,-500.0,0.00024996,2]
[321704890,1712416246969,-1288.3128968,0.00025,2]
[321704892,1712416477461,971.61137,0.00030137,120]
[321704894,1712416584737,171.5376032,0.00023836,2]
[321704896,1712416960987,728.708527,0.00030137,120]
[321704898,1712417004329,686.62317156,0.00024099,2]
[321704899,1712417007083,161.46929426,0.00024099,2]
[321704900,1712417007919,163.31476414,0.0002401,2]
[321704901,1712417154242,2728.2549769,0.00023918,2]
[321704906,1712417187682,-276.80551023,0.00024359,2]
[321704907,1712417187705,-163.31476413,0.0002436,2]
[321704908,1712417187728,-163.31476413,0.00024711,2]
[321704909,1712417187752,-194.55082026,0.00024895,2]
[321704910,1712417187775,-235.3106693,0.00024993,2]
[321704911,1712417187798,-197.26439551,0.00024993,2]
[321704912,1712417187821,-300.0,0.00024993,2]
[321704913,1712417187844,-300.0,0.00024993,2]
[321704914,1712417187868,-500.0,0.00024994,2]
[321704915,1712417187891,-813.57,0.00024994,2]
[321704916,1712417187913,-500.0,0.00024994,2]
[321704917,1712417187935,-956.91,0.00024994,2]
[321704918,1712417187959,-2556.53,0.00024994,2]
[321704919,1712417187981,-500.0,0.00024994,2]
[321704920,1712417188004,-420.51968346,0.00024994,2]
[321704921,1712417188027,-500.0,0.00024994,2]
[321704922,1712417188050,-1070.68,0.00024994,2]
[321704923,1712417188174,-10553.88,0.00024994,2]
[321704924,1712417188197,-647.45,0.00024994,2]
[321704925,1712417188220,-500.0,0.00024994,2]
[321704926,1712417188242,-2370.01,0.00024994,2]
[321704927,1712417188267,-774.31,0.00024994,2]
[321704928,1712417188292,-500.0,0.00024994,2]
[321704929,1712417188315,-500.0,0.00024994,2]
[321704930,1712417188337,-2747.93,0.00024994,2]
[321704931,1712417188360,-1650.53,0.00024994,2]
[321704932,1712417188384,-775.69,0.00024994,2]
[321704933,1712417188409,-500.0,0.00024994,2]
[321704934,1712417188432,-764.68,0.00024995,2]
[321704935,1712417188456,-500.0,0.00024995,2]
[321704936,1712417188480,-1753.8,0.00024995,2]
[321704937,1712417188502,-500.0,0.00024995,2]
[321704938,1712417188524,-500.0,0.00024995,2]
[321704939,1712417188548,-536.66162872,0.00024995,2]
[321704940,1712417188570,-500.0,0.00024995,2]
[321704941,1712417188592,-500.0,0.00024995,2]
[321704942,1712417188614,-1162.04,0.00024995,2]
[321704943,1712417188637,-1264.74,0.00024995,2]
[321704944,1712417188659,-2119.24,0.00024995,2]
[321704945,1712417188682,-500.0,0.00024995,2]
[321704946,1712417188705,-500.0,0.00024995,2]
[321704947,1712417188728,-157.18128897,0.00024995,2]
[321704948,1712417188753,-2657.21,0.00024995,2]
[321704949,1712417188777,-1765.55,0.00024995,2]
[321704950,1712417188803,-720.73,0.00024995,2]
[321704951,1712417188828,-8498.36,0.00024995,2]
[321704952,1712417188850,-267.28584107,0.00024995,2]
[321704953,1712417188873,-252.88225658,0.00024995,2]
[321704954,1712417188896,-500.0,0.00024995,2]
[321704955,1712417188918,-384.60422548,0.00024996,2]
[321704956,1712417188942,-304.24793429,0.00024996,2]
[321704957,1712417188964,-500.0,0.00024996,2]
[321704958,1712417188986,-459.43844139,0.00024996,2]
[321704959,1712417189008,-1262.77777648,0.00025,2]
[321704967,1712417217877,-276.80551023,0.00024993,2]
[321704968,1712417217901,-1212.04,0.00024994,2]
[321704969,1712417217924,-779.67,0.00024994,2]
[321704970,1712417217946,-643.48448977,0.00024994,2]
[321704971,1712417230159,-1387.44551023,0.00024994,2]
[321704972,1712417230182,-732.82,0.00024994,2]
[321704973,1712417230206,-300.0,0.00024999,2]
[321704974,1712417230228,-300.0,0.00024999,2]
[321704975,1712417230251,-8074.27064614,0.00025,2]
[321704976,1712417230273,-153.0,0.00025,2]
[321704977,1712417230296,-550.54728627,0.00025,2]
[321704978,1712417230317,-150.005573,0.00025,2]
[321704979,1712417230340,-389.48977357,0.00025025,2]
[321704980,1712417230362,-163.31476413,0.00025061,2]
[321704981,1712417230384,-251.19365109,0.00025084,2]
[321704982,1712417230408,-2610.92425401,0.00025087,2]
[321704983,1712417230432,-200.0,0.00025089,2]
[321704984,1712417230456,-454.34032177,0.00025089,2]
[321704985,1712417230479,-153.0,0.000251,2]
[321704986,1712417230502,-153.0,0.000251,2]
[321704987,1712417230527,-153.0,0.000251,2]
[321704988,1712417230553,-153.0,0.000251,2]
[321704989,1712417230580,-174.97570958,0.00025135,2]
[321704990,1712417230603,-381.34553329,0.00025168,2]
[321704991,1712417230626,-153.0,0.000252,2]
[321704992,1712417230650,-153.0,0.000252,2]
[321704993,1712417230673,-153.0,0.000252,2]
[321704994,1712417230697,-153.0,0.000252,2]
[321704995,1712417230724,-153.0,0.000252,2]
[321704996,1712417230749,-659.49587287,0.00025268,2]
[321704997,1712417230773,-359.36967682,0.00025268,2]
[321704998,1712417230798,-319.71395225,0.00025268,2]
[321704999,1712417230823,-500.0,0.00025268,2]
[321705000,1712417230847,-500.0,0.00025268,2]
[321705001,1712417230871,-956.91,0.00025268,2]
[321705002,1712417230895,-2556.53,0.00025268,2]
[321705003,1712417230920,-500.0,0.00025268,2]
[321705004,1712417230945,-500.0,0.00025268,2]
[321705005,1712417230969,-1070.68,0.00025268,2]
[321705006,1712417230994,-10553.88,0.00025268,2]
[321705007,1712417231018,-647.45,0.00025268,2]
[321705008,1712417231041,-500.0,0.00025268,2]
[321705009,1712417231064,-2370.01,0.00025268,2]
[321705010,1712417231089,-774.31,0.00025268,2]
[321705011,1712417231111,-500.0,0.00025268,2]
[321705012,1712417231134,-500.0,0.00025268,2]
[321705013,1712417231157,-2747.93,0.00025268,2]
[321705014,1712417231180,-1650.53,0.00025268,2]
[321705015,1712417231204,-775.69,0.00025268,2]
[321705016,1712417231228,-500.0,0.00025268,2]
[321705017,1712417231251,-1212.04,0.00025268,2]
[321705018,1712417231274,-779.67,0.00025268,2]
[321705019,1712417231296,-2030.93,0.00025268,2]
[321705020,1712417231320,-732.82,0.00025268,2]
[321705021,1712417231345,-500.0,0.00025269,2]
[321705022,1712417231367,-1753.8,0.00025269,2]
[321705023,1712417231390,-500.0,0.00025269,2]
[321705024,1712417231413,-500.0,0.00025269,2]
[321705025,1712417231436,-151.0,0.00025269,2]
[321705026,1712417231460,-155.992175,0.00025269,2]
[321705027,1712417231484,-594.91822953,0.00025269,2]
[321705028,1712417231609,-500.0,0.00025269,2]
[321705029,1712417231633,-1162.04,0.00025269,2]
[321705030,1712417231658,-500.0,0.00025269,2]
[321705031,1712417231682,-500.0,0.00025269,2]
[321705032,1712417231707,-2657.21,0.00025269,2]
[321705033,1712417231729,-151.0,0.00025269,2]
[321705034,1712417231753,-151.0,0.00025269,2]
[321705035,1712417231775,-1765.55,0.00025269,2]
[321705036,1712417231802,-720.73,0.00025269,2]
[321705037,1712417231829,-8498.36,0.00025269,2]
[321705038,1712417231852,-500.0,0.00025269,2]
[321705039,1712417231875,-500.0,0.0002527,2]
[321705040,1712417231902,-153.0,0.000253,2]
[321705041,1712417231925,-191.225278,0.000253,2]
[321705042,1712417231948,-153.0,0.000253,2]
[321705043,1712417231971,-153.0,0.000253,2]
[321705044,1712417231994,-153.0,0.000253,2]
[321705045,1712417232017,-306.0,0.000253,2]
[321705046,1712417232039,-153.0,0.000253,2]
[321705047,1712417232062,-153.0,0.000253,2]
[321705048,1712417232086,-153.0,0.000253,2]
[321705049,1712417232110,-202.1111448,0.000253,2]
[321705050,1712417232134,-306.0,0.000253,2]
[321705051,1712417232158,-153.0,0.000253,2]
[321705052,1712417232180,-153.0,0.000253,2]
[321705053,1712417232203,-153.0,0.000253,2]
[321705054,1712417232226,-153.0,0.000253,2]
[321705055,1712417232249,-153.0,0.000253,2]
[321705056,1712417232271,-153.0,0.000253,2]
[321705057,1712417232293,-153.0,0.000253,2]